[Event "Late-Titled-Tuesday-Blitz-February-20-2024"]
[Site "Chess.com"]
[Date "2024.02.20"]
[Round "6"]
[White "maxip32"]
[Black "Jaka_Brilej"]
[Result "1-0"]
[WhiteElo "2653"]
[BlackElo "2504"]
[TimeControl "180+1"]
[EndTime "15:06:44 PST"]
[Termination "maxip32 won by checkmate"]

1. e4 {[%clk 0:03:00.9]} 1... c5 {[%clk 0:02:59.3]} 2. Nf3 {[%clk 0:03:00.8]}
2... Nc6 {[%clk 0:02:59.4]} 3. Bb5 {[%clk 0:03:00.4]} 3... g6 {[%clk 0:02:59]}
4. Bxc6 {[%clk 0:03:00]} 4... dxc6 {[%clk 0:02:58.9]} 5. d3 {[%clk 0:03:00.3]}
5... Bg7 {[%clk 0:02:59.4]} 6. Nc3 {[%clk 0:03:00.7]} 6... Nf6 {[%clk
0:02:58.7]} 7. h3 {[%clk 0:03:01.6]} 7... Nd7 {[%clk 0:02:58.5]} 8. Be3 {[%clk
0:03:00.7]} 8... e5 {[%clk 0:02:58.2]} 9. Qd2 {[%clk 0:03:01.6]} 9... Qe7 {[%clk
0:02:44.8]} 10. Bh6 {[%clk 0:02:58.8]} 10... f6 {[%clk 0:02:43.8]} 11. Bxg7
{[%clk 0:02:58.1]} 11... Qxg7 {[%clk 0:02:44.7]} 12. a3 {[%clk 0:02:58.7]} 12...
Nf8 {[%clk 0:02:44.1]} 13. b4 {[%clk 0:02:58.9]} 13... cxb4 {[%clk 0:02:40.6]}
14. axb4 {[%clk 0:02:58.3]} 14... Ne6 {[%clk 0:02:41.3]} 15. O-O {[%clk
0:02:57.8]} 15... O-O {[%clk 0:02:40.3]} 16. Qe3 {[%clk 0:02:57.9]} 16... Nf4
{[%clk 0:02:32.6]} 17. Ne2 {[%clk 0:02:29.9]} 17... g5 {[%clk 0:02:22]} 18. Nh2
{[%clk 0:02:25.7]} 18... h5 {[%clk 0:02:18.8]} 19. c3 {[%clk 0:02:10.9]} 19...
Be6 {[%clk 0:01:55.7]} 20. Rfd1 {[%clk 0:02:00.3]} 20... Kh7 {[%clk 0:01:48]}
21. d4 {[%clk 0:01:49.4]} 21... Rg8 {[%clk 0:01:18.9]} 22. d5 {[%clk 0:01:38]}
22... cxd5 {[%clk 0:01:17.9]} 23. exd5 {[%clk 0:01:38.9]} 23... Bxd5 {[%clk
0:01:14]} 24. Rxd5 {[%clk 0:01:33.8]} 24... Nxd5 {[%clk 0:01:08.9]} 25. Qe4+
{[%clk 0:01:31]} 25... f5 {[%clk 0:01:08.3]} 26. Qxd5 {[%clk 0:01:31.2]} 26...
f4 {[%clk 0:01:06.6]} 27. Rd1 {[%clk 0:01:17.6]} 27... Rad8 {[%clk 0:01:04.8]}
28. Qe4+ {[%clk 0:01:05.5]} 28... Kh6 {[%clk 0:01:03.3]} 29. Re1 {[%clk
0:00:59.8]} 29... g4 {[%clk 0:01:00.9]} 30. hxg4 {[%clk 0:00:59.3]} 30... hxg4
{[%clk 0:01:00.3]} 31. Nf1 {[%clk 0:00:33.3]} 31... Qg5 {[%clk 0:00:53.4]} 32.
Nc1 {[%clk 0:00:32.7]} 32... f3 {[%clk 0:00:49.2]} 33. Nd3 {[%clk 0:00:25.9]}
33... fxg2 {[%clk 0:00:44.6]} 34. Ng3 {[%clk 0:00:25.3]} 34... Qd2 {[%clk
0:00:39.8]} 35. Nxe5 {[%clk 0:00:22]} 35... Rdf8 {[%clk 0:00:32]} 36. Re2 {[%clk
0:00:12.1]} 36... Qc1+ {[%clk 0:00:28.3]} 37. Kxg2 {[%clk 0:00:12.2]} 37... Rg5
{[%clk 0:00:23.1]} 38. Re1 {[%clk 0:00:12.1]} 38... Qxc3 {[%clk 0:00:21.2]} 39.
Rh1+ {[%clk 0:00:12]} 39... Kg7 {[%clk 0:00:19.8]} 40. Rh7+ {[%clk 0:00:11.7]}
40... Kf6 {[%clk 0:00:20.5]} 41. Nxg4+ {[%clk 0:00:11]} 41... Rxg4 {[%clk
0:00:17.1]} 42. Qe7+ {[%clk 0:00:11]} 42... Kg6 {[%clk 0:00:15.6]} 43. Qxf8
{[%clk 0:00:08.7]} 43... Qc6+ {[%clk 0:00:15.8]} 44. Kh3 {[%clk 0:00:06.6]}
44... Kxh7 {[%clk 0:00:14.4]} 45. Kxg4 {[%clk 0:00:06.7]} 45... Qe4+ {[%clk
0:00:14.7]} 46. Nxe4 {[%clk 0:00:05.7]} 46... a6 {[%clk 0:00:01.3]} 47. Kh5
{[%clk 0:00:06.6]} 47... a5 {[%clk 0:00:01.6]} 48. Ng5# {[%clk 0:00:06.7]} 1-0

[Event "Late-Titled-Tuesday-Blitz-February-20-2024"]
[Site "Chess.com"]
[Date "2024.02.20"]
[Round "6"]
[White "maroro07"]
[Black "JosephRyan"]
[Result "1-0"]
[WhiteElo "2408"]
[BlackElo "2186"]
[TimeControl "180+1"]
[EndTime "15:06:46 PST"]
[Termination "maroro07 won by resignation"]

1. e4 {[%clk 0:03:00.9]} 1... g6 {[%clk 0:02:57.4]} 2. d4 {[%clk 0:02:59.5]}
2... Bg7 {[%clk 0:02:57.6]} 3. Nc3 {[%clk 0:02:59.4]} 3... d6 {[%clk 0:02:57.5]}
4. Be3 {[%clk 0:02:59.2]} 4... a6 {[%clk 0:02:57.5]} 5. h4 {[%clk 0:02:58.5]}
5... h5 {[%clk 0:02:49.6]} 6. Nh3 {[%clk 0:02:57.7]} 6... Bxh3 {[%clk
0:02:44.8]} 7. Rxh3 {[%clk 0:02:55.6]} 7... Nd7 {[%clk 0:02:44.9]} 8. Qd2 {[%clk
0:02:48.9]} 8... c5 {[%clk 0:02:36.4]} 9. O-O-O {[%clk 0:02:44.1]} 9... cxd4
{[%clk 0:02:31.1]} 10. Bxd4 {[%clk 0:02:43]} 10... Bxd4 {[%clk 0:02:31.1]} 11.
Qxd4 {[%clk 0:02:43.8]} 11... Ngf6 {[%clk 0:02:31.2]} 12. f4 {[%clk 0:02:30]}
12... Qb6 {[%clk 0:02:25.2]} 13. Qxb6 {[%clk 0:02:05.2]} 13... Nxb6 {[%clk
0:02:24.5]} 14. Be2 {[%clk 0:02:06.1]} 14... Rc8 {[%clk 0:02:06.9]} 15. e5
{[%clk 0:02:00.8]} 15... dxe5 {[%clk 0:01:58.3]} 16. fxe5 {[%clk 0:02:01.7]}
16... Ng4 {[%clk 0:01:57.4]} 17. Bxg4 {[%clk 0:01:35.5]} 17... hxg4 {[%clk
0:01:58.3]} 18. Rhh1 {[%clk 0:01:35.3]} 18... e6 {[%clk 0:01:51.4]} 19. Ne4
{[%clk 0:01:33.1]} 19... Ke7 {[%clk 0:01:50.5]} 20. g3 {[%clk 0:01:02.9]} 20...
Nc4 {[%clk 0:01:47.7]} 21. Rhe1 {[%clk 0:00:43.8]} 21... Nxe5 {[%clk 0:01:44.2]}
22. Nd6 {[%clk 0:00:42.8]} 22... Rcd8 {[%clk 0:01:23.4]} 23. Nxb7 {[%clk
0:00:42.5]} 23... Rxd1+ {[%clk 0:01:22.5]} 24. Rxd1 {[%clk 0:00:41.9]} 24... Rb8
{[%clk 0:01:14.6]} 25. Nc5 {[%clk 0:00:36.6]} 25... a5 {[%clk 0:01:12.2]} 26. b3
{[%clk 0:00:32.8]} 26... Rc8 {[%clk 0:01:09.5]} 27. Ne4 {[%clk 0:00:30.4]} 27...
f5 {[%clk 0:01:05.5]} 28. Ng5 {[%clk 0:00:26.2]} 28... Kf6 {[%clk 0:01:05.7]}
29. c4 {[%clk 0:00:24.2]} 29... Nf7 {[%clk 0:00:45.1]} 30. Nxf7 {[%clk
0:00:14.5]} 30... Kxf7 {[%clk 0:00:46]} 31. Kc2 {[%clk 0:00:13.9]} 31... e5
{[%clk 0:00:44.7]} 32. Kc3 {[%clk 0:00:11.1]} 32... f4 {[%clk 0:00:43.1]} 33.
gxf4 {[%clk 0:00:10.9]} 33... exf4 {[%clk 0:00:43.3]} 34. Rd4 {[%clk 0:00:10.7]}
34... g5 {[%clk 0:00:33.5]} 35. hxg5 {[%clk 0:00:10.2]} 35... Kg6 {[%clk
0:00:34.1]} 36. Rxf4 {[%clk 0:00:10.5]} 36... Kxg5 {[%clk 0:00:34.7]} 37. Rf7
{[%clk 0:00:10.9]} 37... g3 {[%clk 0:00:34.2]} 38. Rg7+ {[%clk 0:00:10.7]} 38...
Kf4 {[%clk 0:00:34.6]} 39. a3 {[%clk 0:00:08.6]} 39... Kf3 {[%clk 0:00:31.3]}
40. b4 {[%clk 0:00:09.2]} 40... a4 {[%clk 0:00:20.8]} 41. b5 {[%clk 0:00:09]}
41... g2 {[%clk 0:00:20.6]} 42. Kb4 {[%clk 0:00:09]} 42... Kf2 {[%clk
0:00:17.3]} 43. c5 {[%clk 0:00:09.3]} 43... g1=Q {[%clk 0:00:17]} 44. Rxg1
{[%clk 0:00:10.1]} 44... Kxg1 {[%clk 0:00:17.3]} 45. c6 {[%clk 0:00:10.4]} 45...
Kf2 {[%clk 0:00:14.9]} 46. Kc5 {[%clk 0:00:10.5]} 46... Ke3 {[%clk 0:00:14.1]}
47. b6 {[%clk 0:00:11.1]} 47... Ke4 {[%clk 0:00:10.1]} 48. b7 {[%clk 0:00:11.6]}
48... Rh8 {[%clk 0:00:08.9]} 49. c7 {[%clk 0:00:10.9]} 49... Rh5+ {[%clk
0:00:05.7]} 50. Kb4 {[%clk 0:00:08.7]} 1-0

[Event "Late-Titled-Tuesday-Blitz-February-20-2024"]
[Site "Chess.com"]
[Date "2024.02.20"]
[Round "6"]
[White "AlexTruskavetsky"]
[Black "vugarrasulov"]
[Result "1-0"]
[WhiteElo "2732"]
[BlackElo "2929"]
[TimeControl "180+1"]
[EndTime "15:06:49 PST"]
[Termination "AlexTruskavetsky won by resignation"]

1. d4 {[%clk 0:03:00.9]} 1... Nf6 {[%clk 0:02:58.6]} 2. c4 {[%clk 0:03:00.8]}
2... e6 {[%clk 0:02:59]} 3. Nc3 {[%clk 0:03:00.9]} 3... Bb4 {[%clk 0:02:58.8]}
4. e3 {[%clk 0:03:01.5]} 4... c5 {[%clk 0:02:57.6]} 5. a3 {[%clk 0:03:01.8]}
5... Ba5 {[%clk 0:02:54.9]} 6. Bd3 {[%clk 0:02:57.4]} 6... Nc6 {[%clk 0:02:53]}
7. Ne2 {[%clk 0:02:57.4]} 7... d6 {[%clk 0:02:51.4]} 8. Rb1 {[%clk 0:02:57]}
8... O-O {[%clk 0:02:51.3]} 9. O-O {[%clk 0:02:55.3]} 9... h6 {[%clk 0:02:39.8]}
10. Qc2 {[%clk 0:02:46.7]} 10... Bb6 {[%clk 0:02:36.8]} 11. dxc5 {[%clk
0:02:40.7]} 11... dxc5 {[%clk 0:02:37.7]} 12. Rd1 {[%clk 0:02:38.2]} 12... Qe7
{[%clk 0:02:37.8]} 13. Ng3 {[%clk 0:02:31.6]} 13... Bc7 {[%clk 0:02:37.6]} 14.
b3 {[%clk 0:02:30.9]} 14... b6 {[%clk 0:02:33.7]} 15. Bb2 {[%clk 0:02:30.9]}
15... Bb7 {[%clk 0:02:34.2]} 16. Nce4 {[%clk 0:02:30]} 16... Be5 {[%clk
0:02:25.9]} 17. Nxf6+ {[%clk 0:02:27.5]} 17... Qxf6 {[%clk 0:02:20.2]} 18. Be4
{[%clk 0:02:22]} 18... Bxb2 {[%clk 0:02:15.9]} 19. Qxb2 {[%clk 0:02:21.3]} 19...
Rad8 {[%clk 0:02:03]} 20. Qxf6 {[%clk 0:02:03.9]} 20... gxf6 {[%clk 0:02:03.9]}
21. f4 {[%clk 0:02:04.4]} 21... f5 {[%clk 0:02:01.2]} 22. Bf3 {[%clk 0:02:02.6]}
22... Na5 {[%clk 0:01:57.2]} 23. Rxd8 {[%clk 0:01:53.3]} 23... Rxd8 {[%clk
0:01:56.4]} 24. Rd1 {[%clk 0:01:54]} 24... Rxd1+ {[%clk 0:01:51.1]} 25. Bxd1
{[%clk 0:01:54.9]} 25... Kg7 {[%clk 0:01:40.9]} 26. Kf2 {[%clk 0:01:55]} 26...
Kf6 {[%clk 0:01:41]} 27. Ne2 {[%clk 0:01:50.8]} 27... Be4 {[%clk 0:01:39.8]} 28.
Nc3 {[%clk 0:01:50.5]} 28... Bd3 {[%clk 0:01:38.3]} 29. h3 {[%clk 0:01:47.2]}
29... Ke7 {[%clk 0:01:37.5]} 30. g4 {[%clk 0:01:42.6]} 30... Kd7 {[%clk
0:01:17.9]} 31. g5 {[%clk 0:01:41.3]} 31... hxg5 {[%clk 0:01:17.3]} 32. fxg5
{[%clk 0:01:42.2]} 32... Ke7 {[%clk 0:01:17.3]} 33. h4 {[%clk 0:01:42.5]} 33...
Kf8 {[%clk 0:01:13.3]} 34. h5 {[%clk 0:01:15.8]} 34... Nc6 {[%clk 0:01:11.3]}
35. Kg3 {[%clk 0:01:14.7]} 35... Kg7 {[%clk 0:01:05.3]} 36. Nb5 {[%clk
0:00:59.7]} 36... a6 {[%clk 0:00:53.9]} 37. Nc7 {[%clk 0:00:59.7]} 37... b5
{[%clk 0:00:54.1]} 38. Nxa6 {[%clk 0:00:59.3]} 38... bxc4 {[%clk 0:00:46.1]} 39.
bxc4 {[%clk 0:01:00.2]} 39... Bxc4 {[%clk 0:00:46.4]} 40. Nxc5 {[%clk
0:01:00.2]} 40... Ne7 {[%clk 0:00:39.9]} 41. Nd7 {[%clk 0:00:49]} 41... Bb5
{[%clk 0:00:23.3]} 42. h6+ {[%clk 0:00:48]} 42... Kh8 {[%clk 0:00:23.7]} 43. Ne5
{[%clk 0:00:47.6]} 43... Kg8 {[%clk 0:00:20.8]} 44. Bh5 {[%clk 0:00:46.4]} 44...
Be8 {[%clk 0:00:21.4]} 45. a4 {[%clk 0:00:41.1]} 45... Nd5 {[%clk 0:00:21.6]}
46. a5 {[%clk 0:00:40.2]} 46... Nxe3 {[%clk 0:00:21.5]} 47. a6 {[%clk
0:00:40.7]} 47... Nd5 {[%clk 0:00:22.1]} 48. a7 {[%clk 0:00:36.5]} 48... f4+
{[%clk 0:00:15.6]} 49. Kh4 {[%clk 0:00:33.9]} 49... Nc7 {[%clk 0:00:13.9]} 50.
Bf3 {[%clk 0:00:28]} 50... Kh7 {[%clk 0:00:12.1]} 51. Be4+ {[%clk 0:00:28]}
51... Kg8 {[%clk 0:00:08.9]} 52. a8=Q {[%clk 0:00:25.1]} 52... Nxa8 {[%clk
0:00:09.4]} 53. Bxa8 {[%clk 0:00:25.8]} 53... Bb5 {[%clk 0:00:09.8]} 54. Be4
{[%clk 0:00:25.8]} 54... Be8 {[%clk 0:00:08.5]} 55. Kg4 {[%clk 0:00:25.1]} 55...
Ba4 {[%clk 0:00:07.6]} 56. h7+ {[%clk 0:00:24.3]} 56... Kg7 {[%clk 0:00:06.9]}
57. Nxf7 {[%clk 0:00:24.8]} 1-0

[Event "Late-Titled-Tuesday-Blitz-February-20-2024"]
[Site "Chess.com"]
[Date "2024.02.20"]
[Round "6"]
[White "rdarruda"]
[Black "stollenmonster"]
[Result "0-1"]
[WhiteElo "2542"]
[BlackElo "2866"]
[TimeControl "180+1"]
[EndTime "15:06:50 PST"]
[Termination "stollenmonster won by checkmate"]

1. d4 {[%clk 0:03:00.9]} 1... Nf6 {[%clk 0:02:59.4]} 2. Nf3 {[%clk 0:03:00.7]}
2... e6 {[%clk 0:03:00.3]} 3. c4 {[%clk 0:03:00.4]} 3... d5 {[%clk 0:03:00.6]}
4. Nc3 {[%clk 0:03:00.2]} 4... Ne4 {[%clk 0:03:01]} 5. e3 {[%clk 0:02:59.4]}
5... f5 {[%clk 0:03:01.3]} 6. cxd5 {[%clk 0:02:57.1]} 6... exd5 {[%clk
0:03:01.2]} 7. Bd3 {[%clk 0:02:56.4]} 7... c6 {[%clk 0:03:01.2]} 8. O-O {[%clk
0:02:55.8]} 8... Bd6 {[%clk 0:03:01.8]} 9. Ne5 {[%clk 0:02:55.6]} 9... O-O
{[%clk 0:03:02.4]} 10. f3 {[%clk 0:02:55.1]} 10... Nxc3 {[%clk 0:03:02.8]} 11.
bxc3 {[%clk 0:02:54.8]} 11... Nd7 {[%clk 0:03:03.2]} 12. f4 {[%clk 0:02:46.1]}
12... Nf6 {[%clk 0:03:03.5]} 13. c4 {[%clk 0:02:42.8]} 13... Be6 {[%clk
0:02:55]} 14. Qc2 {[%clk 0:02:40.2]} 14... Ne4 {[%clk 0:02:50.2]} 15. Rb1 {[%clk
0:02:35.9]} 15... Rb8 {[%clk 0:02:47.9]} 16. c5 {[%clk 0:01:58.5]} 16... Bc7
{[%clk 0:02:45.7]} 17. Bd2 {[%clk 0:01:57.6]} 17... g5 {[%clk 0:02:40.4]} 18. g3
{[%clk 0:01:54.7]} 18... g4 {[%clk 0:02:31.7]} 19. Be1 {[%clk 0:01:47.3]} 19...
h5 {[%clk 0:02:31.8]} 20. h4 {[%clk 0:01:43.7]} 20... gxh3 {[%clk 0:02:28.4]}
21. Kh2 {[%clk 0:01:43.6]} 21... Nf6 {[%clk 0:02:11.9]} 22. Kxh3 {[%clk
0:01:38.8]} 22... Ng4 {[%clk 0:02:02]} 23. Nxg4 {[%clk 0:01:37.7]} 23... fxg4+
{[%clk 0:02:01.9]} 24. Kg2 {[%clk 0:01:38]} 24... Qe7 {[%clk 0:02:02]} 25. Bd2
{[%clk 0:01:32.1]} 25... Bf7 {[%clk 0:01:50.7]} 26. Bg6 {[%clk 0:01:28]} 26...
Qe6 {[%clk 0:01:46.2]} 27. Bd3 {[%clk 0:01:22.5]} 27... b6 {[%clk 0:01:40.7]}
28. cxb6 {[%clk 0:01:21.7]} 28... Bxb6 {[%clk 0:01:41.4]} 29. f5 {[%clk
0:01:16.1]} 29... Qd6 {[%clk 0:01:35.7]} 30. f6 {[%clk 0:01:12.8]} 30... Bc7
{[%clk 0:01:31.9]} 31. Be1 {[%clk 0:01:09]} 31... Rxb1 {[%clk 0:01:31.6]} 32.
Qxb1 {[%clk 0:01:09.9]} 32... Rb8 {[%clk 0:01:24]} 33. Qc2 {[%clk 0:01:09.1]}
33... Qa3 {[%clk 0:01:22.6]} 34. Bc3 {[%clk 0:01:03]} 34... Ba5 {[%clk
0:01:12.8]} 35. Ba1 {[%clk 0:00:57.4]} 35... Qd6 {[%clk 0:01:12.4]} 36. Bc3
{[%clk 0:00:54.1]} 36... Bc7 {[%clk 0:00:58.2]} 37. Be1 {[%clk 0:00:53.2]} 37...
Re8 {[%clk 0:00:45.5]} 38. Qf2 {[%clk 0:00:46.6]} 38... Qe6 {[%clk 0:00:37.4]}
39. Bd2 {[%clk 0:00:45.7]} 39... Rb8 {[%clk 0:00:34.3]} 40. Bf5 {[%clk
0:00:44.6]} 40... Qd6 {[%clk 0:00:34.1]} 41. Bc1 {[%clk 0:00:39.7]} 41... h4
{[%clk 0:00:27.6]} 42. Bxg4 {[%clk 0:00:31.1]} 42... Qxg3+ {[%clk 0:00:26.3]}
43. Qxg3 {[%clk 0:00:31]} 43... Bxg3 {[%clk 0:00:25.1]} 44. Bd1 {[%clk
0:00:24.5]} 44... Bg6 {[%clk 0:00:20.7]} 45. Bb3 {[%clk 0:00:24.5]} 45... Be4+
{[%clk 0:00:20.2]} 46. Kh3 {[%clk 0:00:24]} 46... Kf7 {[%clk 0:00:20.9]} 47. Bd2
{[%clk 0:00:24.1]} 47... Rg8 {[%clk 0:00:20.8]} 48. Bb4 {[%clk 0:00:23.1]} 48...
Rg6 {[%clk 0:00:20.4]} 49. Be7 {[%clk 0:00:22.4]} 49... Bc7 {[%clk 0:00:17]} 50.
Rf2 {[%clk 0:00:22.5]} 50... Rg3+ {[%clk 0:00:16.2]} 51. Kxh4 {[%clk 0:00:21.6]}
51... Rxe3 {[%clk 0:00:16.9]} 52. Rd2 {[%clk 0:00:17.7]} 52... Bf4 {[%clk
0:00:14.8]} 53. Rb2 {[%clk 0:00:14.6]} 53... Re1 {[%clk 0:00:13.2]} 54. Kg4
{[%clk 0:00:15]} 54... Bc1 {[%clk 0:00:12.1]} 55. Rh2 {[%clk 0:00:14.3]} 55...
Rg1+ {[%clk 0:00:11.6]} 56. Kh4 {[%clk 0:00:11.8]} 56... Bg5+ {[%clk 0:00:10.7]}
57. Kh3 {[%clk 0:00:12.3]} 57... Bf5# {[%clk 0:00:10.7]} 0-1

[Event "Late-Titled-Tuesday-Blitz-February-20-2024"]
[Site "Chess.com"]
[Date "2024.02.20"]
[Round "6"]
[White "Duhless"]
[Black "Hrant_ChessMood"]
[Result "1-0"]
[WhiteElo "3100"]
[BlackElo "3011"]
[TimeControl "180+1"]
[EndTime "15:06:51 PST"]
[Termination "Duhless won by resignation"]

1. d4 {[%clk 0:03:00.9]} 1... d5 {[%clk 0:03:00]} 2. Nf3 {[%clk 0:03:00.9]} 2...
Nf6 {[%clk 0:03:00.2]} 3. c4 {[%clk 0:03:01.6]} 3... e6 {[%clk 0:03:00.6]} 4. g3
{[%clk 0:03:02.3]} 4... dxc4 {[%clk 0:02:54.4]} 5. Bg2 {[%clk 0:03:02.2]} 5...
Bb4+ {[%clk 0:02:54.6]} 6. Nbd2 {[%clk 0:03:01]} 6... b5 {[%clk 0:02:32.6]} 7.
Ne5 {[%clk 0:02:57.4]} 7... c6 {[%clk 0:02:28.6]} 8. O-O {[%clk 0:02:54.4]} 8...
O-O {[%clk 0:02:25.1]} 9. a4 {[%clk 0:02:40.3]} 9... Qxd4 {[%clk 0:02:12.2]} 10.
Nxc6 {[%clk 0:02:32.9]} 10... Nxc6 {[%clk 0:02:09.4]} 11. axb5 {[%clk
0:02:18.9]} 11... a5 {[%clk 0:01:24.5]} 12. Bxc6 {[%clk 0:02:09.6]} 12... Rb8
{[%clk 0:01:21.8]} 13. Nf3 {[%clk 0:02:05.8]} 13... Qxd1 {[%clk 0:01:11]} 14.
Rxd1 {[%clk 0:02:06.7]} 14... Bb7 {[%clk 0:01:11.8]} 15. Bf4 {[%clk 0:01:54.6]}
15... Bxc6 {[%clk 0:01:12]} 16. bxc6 {[%clk 0:01:49.8]} 16... Rbc8 {[%clk
0:01:12.3]} 17. Bd6 {[%clk 0:01:29.1]} 17... Rfe8 {[%clk 0:00:50.9]} 18. Ne5
{[%clk 0:01:24.8]} 18... Nd5 {[%clk 0:00:42.4]} 19. Bxb4 {[%clk 0:01:20.5]}
19... Nxb4 {[%clk 0:00:42.5]} 20. Nxc4 {[%clk 0:00:50.5]} 20... Rxc6 {[%clk
0:00:42.7]} 21. b3 {[%clk 0:00:46.5]} 21... Nd5 {[%clk 0:00:28.2]} 22. Rxa5
{[%clk 0:00:45.1]} 22... g6 {[%clk 0:00:28.2]} 23. Ra7 {[%clk 0:00:41.9]} 23...
Rf8 {[%clk 0:00:19.9]} 24. Kg2 {[%clk 0:00:34.1]} 24... Rc5 {[%clk 0:00:14.6]}
25. Rd3 {[%clk 0:00:26.7]} 25... Rb5 {[%clk 0:00:14.9]} 26. e4 {[%clk
0:00:20.8]} 26... Nf6 {[%clk 0:00:11.6]} 27. e5 {[%clk 0:00:09.4]} 27... Nd5
{[%clk 0:00:10.5]} 28. Nd6 {[%clk 0:00:08.6]} 28... Rc5 {[%clk 0:00:09.2]} 29.
Rf3 {[%clk 0:00:08.2]} 29... Rc7 {[%clk 0:00:09.2]} 30. Rxc7 {[%clk 0:00:07.4]}
30... Nxc7 {[%clk 0:00:10.1]} 31. b4 {[%clk 0:00:07.8]} 31... Nd5 {[%clk
0:00:10.7]} 32. b5 {[%clk 0:00:07.9]} 32... Kg7 {[%clk 0:00:09.8]} 33. Ra3
{[%clk 0:00:07.5]} 33... g5 {[%clk 0:00:08]} 34. Ra7 {[%clk 0:00:07.1]} 34...
Kg6 {[%clk 0:00:08.1]} 35. Rb7 {[%clk 0:00:05.6]} 35... h5 {[%clk 0:00:04.8]}
36. h3 {[%clk 0:00:05.9]} 36... g4 {[%clk 0:00:04.6]} 37. hxg4 {[%clk
0:00:06.2]} 37... hxg4 {[%clk 0:00:05.5]} 38. Ra7 {[%clk 0:00:06.3]} 38... Kg7
{[%clk 0:00:05.2]} 39. Rb7 {[%clk 0:00:05.9]} 39... Kg6 {[%clk 0:00:05.4]} 40.
b6 {[%clk 0:00:06.3]} 40... Kg7 {[%clk 0:00:04]} 41. Nc4 {[%clk 0:00:06.1]}
41... Rc8 {[%clk 0:00:03.2]} 42. Rxf7+ {[%clk 0:00:05.6]} 42... Kg6 {[%clk
0:00:02.4]} 43. b7 {[%clk 0:00:05.1]} 43... Rb8 {[%clk 0:00:02.6]} 44. Nd6
{[%clk 0:00:05.6]} 44... Nb6 {[%clk 0:00:01.5]} 45. Rc7 {[%clk 0:00:05.4]} 45...
Kg5 {[%clk 0:00:01.5]} 46. Rc8 {[%clk 0:00:04.7]} 1-0

[Event "Late-Titled-Tuesday-Blitz-February-20-2024"]
[Site "Chess.com"]
[Date "2024.02.20"]
[Round "6"]
[White "carloseduar100"]
[Black "TokChess"]
[Result "1/2-1/2"]
[WhiteElo "2375"]
[BlackElo "2554"]
[TimeControl "180+1"]
[EndTime "15:06:52 PST"]
[Termination "Game drawn by repetition"]

1. e4 {[%clk 0:02:43.6]} 1... e5 {[%clk 0:02:55.7]} 2. Nf3 {[%clk 0:02:43]} 2...
Nf6 {[%clk 0:02:55.8]} 3. Nc3 {[%clk 0:02:42.1]} 3... Nc6 {[%clk 0:02:54.2]} 4.
Nxe5 {[%clk 0:02:39.3]} 4... Nxe5 {[%clk 0:02:52.9]} 5. d4 {[%clk 0:02:40.2]}
5... Nc6 {[%clk 0:02:41.4]} 6. d5 {[%clk 0:02:40.1]} 6... Ne7 {[%clk 0:02:31.1]}
7. e5 {[%clk 0:02:37.7]} 7... Nfxd5 {[%clk 0:02:29.8]} 8. Nxd5 {[%clk
0:02:36.9]} 8... Nxd5 {[%clk 0:02:30.7]} 9. Qxd5 {[%clk 0:02:36.6]} 9... Qe7
{[%clk 0:02:23.3]} 10. Bd2 {[%clk 0:02:34]} 10... Qe6 {[%clk 0:02:21.7]} 11.
Qxe6+ {[%clk 0:02:32.8]} 11... fxe6 {[%clk 0:02:08.2]} 12. O-O-O {[%clk
0:02:32.9]} 12... Bc5 {[%clk 0:01:55.5]} 13. f4 {[%clk 0:02:23.8]} 13... b6
{[%clk 0:01:53.8]} 14. h4 {[%clk 0:01:56.4]} 14... Bb7 {[%clk 0:01:50.6]} 15.
Rh3 {[%clk 0:01:56.5]} 15... Bc6 {[%clk 0:01:31.1]} 16. g4 {[%clk 0:01:50.8]}
16... O-O {[%clk 0:01:27.6]} 17. Bd3 {[%clk 0:01:45.6]} 17... Rae8 {[%clk
0:01:11.1]} 18. Re1 {[%clk 0:01:43.6]} 18... Bf2 {[%clk 0:01:00.1]} 19. Re2
{[%clk 0:01:35.9]} 19... Bc5 {[%clk 0:00:59.1]} 20. f5 {[%clk 0:01:25.6]} 20...
Bd4 {[%clk 0:00:46.3]} 21. c3 {[%clk 0:01:22.7]} 21... Bc5 {[%clk 0:00:40.4]}
22. Kc2 {[%clk 0:01:18.8]} 22... a5 {[%clk 0:00:37.4]} 23. a3 {[%clk 0:01:18.2]}
23... a4 {[%clk 0:00:28]} 24. Bg5 {[%clk 0:01:16.5]} 24... h6 {[%clk 0:00:21.4]}
25. Bd2 {[%clk 0:01:15.5]} 25... Rf7 {[%clk 0:00:20.6]} 26. f6 {[%clk 0:01:10]}
26... gxf6 {[%clk 0:00:20.5]} 27. Bxh6 {[%clk 0:01:10.3]} 27... fxe5 {[%clk
0:00:17.1]} 28. Rxe5 {[%clk 0:01:10.5]} 28... Bf8 {[%clk 0:00:10.5]} 29. Bd2
{[%clk 0:01:02.5]} 29... Bg7 {[%clk 0:00:10.5]} 30. Re2 {[%clk 0:01:00.4]} 30...
Ref8 {[%clk 0:00:06.4]} 31. g5 {[%clk 0:00:59.9]} 31... e5 {[%clk 0:00:06.3]}
32. h5 {[%clk 0:00:58]} 32... Rf3 {[%clk 0:00:03.9]} 33. Rxf3 {[%clk 0:00:53.2]}
33... Bxf3 {[%clk 0:00:04.5]} 34. Rh2 {[%clk 0:00:49.3]} 34... d5 {[%clk
0:00:04.9]} 35. h6 {[%clk 0:00:49.2]} 35... e4 {[%clk 0:00:05]} 36. hxg7 {[%clk
0:00:48.7]} 36... exd3+ {[%clk 0:00:04.8]} 37. Kxd3 {[%clk 0:00:49.6]} 37...
Be4+ {[%clk 0:00:05.4]} 38. Kd4 {[%clk 0:00:49.2]} 38... Kxg7 {[%clk 0:00:05.9]}
39. Be3 {[%clk 0:00:46.3]} 39... c5+ {[%clk 0:00:04.1]} 40. Ke5 {[%clk
0:00:46.3]} 40... Re8+ {[%clk 0:00:02.2]} 41. Kd6 {[%clk 0:00:46.4]} 41... Bg6
{[%clk 0:00:02.2]} 42. Bd2 {[%clk 0:00:42.3]} 42... Bf7 {[%clk 0:00:02.8]} 43.
Kc7 {[%clk 0:00:42.4]} 43... Re6 {[%clk 0:00:02.4]} 44. Bf4 {[%clk 0:00:40.7]}
44... b5 {[%clk 0:00:02.5]} 45. Bd6 {[%clk 0:00:40.6]} 45... d4 {[%clk
0:00:02.3]} 46. Bxc5 {[%clk 0:00:38.6]} 46... d3 {[%clk 0:00:02.9]} 47. Bd4+
{[%clk 0:00:38.9]} 47... Kg6 {[%clk 0:00:03.4]} 48. Rd2 {[%clk 0:00:37.2]} 48...
Kxg5 {[%clk 0:00:03]} 49. Rxd3 {[%clk 0:00:37.5]} 49... Bg6 {[%clk 0:00:03.6]}
50. Rg3+ {[%clk 0:00:37.4]} 50... Kf5 {[%clk 0:00:02.9]} 51. Rf3+ {[%clk
0:00:37.4]} 51... Ke4 {[%clk 0:00:02.4]} 52. Re3+ {[%clk 0:00:37.4]} 52... Kd5
{[%clk 0:00:02.2]} 53. Rxe6 {[%clk 0:00:38.3]} 53... Kxe6 {[%clk 0:00:02.7]} 54.
Kb6 {[%clk 0:00:39]} 54... Bd3 {[%clk 0:00:02.9]} 55. Kc5 {[%clk 0:00:39]} 55...
Bc4 {[%clk 0:00:03.2]} 56. Kb4 {[%clk 0:00:38.7]} 56... Kd7 {[%clk 0:00:03.6]}
57. Kc5 {[%clk 0:00:39]} 57... Kc7 {[%clk 0:00:03.9]} 58. Be5+ {[%clk
0:00:39.2]} 58... Kb7 {[%clk 0:00:04.4]} 59. Bd6 {[%clk 0:00:39]} 59... Ka6
{[%clk 0:00:04.2]} 60. Be5 {[%clk 0:00:39.9]} 60... Kb7 {[%clk 0:00:04.5]} 61.
Bd6 {[%clk 0:00:40.8]} 61... Kc8 {[%clk 0:00:05]} 62. Be5 {[%clk 0:00:41.7]}
62... Kb7 {[%clk 0:00:05.6]} 1/2-1/2